bitfinex/quotes_SOLUSD_20250425
["timestamp","ask_amount","ask_price","bid_price","bid_amount"]
[1745603500433,0.063,150.94,150.92,0.08197012]
[1745603500640,0.063,150.94,150.92,27.12734224]
[1745603501137,0.063,150.94,150.92,0.08197012]
[1745603503371,0.063,150.94,150.92,27.12734224]
[1745603503555,0.063,150.94,150.93,27.04537212]
[1745603504670,0.063,150.94,150.93,44.18537212]
[1745603505139,0.063,150.94,150.93,70.18537212]
[1745603506579,0.063,150.94,150.93,171.63502098]
[1745603506742,0.063,150.94,150.93,145.63502098]
[1745603509552,0.063,150.94,150.93,126.98537212]
[1745603510967,0.063,150.94,150.93,145.63502098]
[1745603512375,0.063,150.94,150.93,179.44814269]
[1745603512784,0.063,150.94,150.93,152.40277057]
[1745603512984,0.063,150.94,150.93,179.44814269]
[1745603513161,0.063,150.99,150.96,26.0]
[1745603513366,0.063,150.99,150.96,135.84537212]
[1745603513676,0.063,150.99,150.96,109.84537212]
[1745603514057,0.063,150.99,150.98,27.04537212]
[1745603514383,0.063,150.99,150.97,27.04537212]
[1745603515248,0.063,150.99,150.97,16.84177376]
[1745603516353,0.063,150.99,150.96,99.64177376]
[1745603517069,0.063,150.99,150.98,16.84177376]
[1745603517598,0.063,150.99,150.96,82.8]
[1745603518086,0.063,150.99,150.96,99.64177376]
[1745603518458,0.063,150.99,150.97,16.84177376]
[1745603518871,0.063,150.99,150.96,99.64177376]
[1745603520676,0.063,150.99,150.96,82.8]
[1745603521279,0.063,150.99,150.97,16.84177376]
[1745603521652,0.063,150.99,150.98,42.84177376]
[1745603522071,0.063,150.99,150.98,61.49142262]
[1745603522382,0.063,150.99,150.98,119.75763579]
[1745603522590,0.063,150.99,150.98,126.38102961]
[1745603522795,0.063,151.04,150.99,82.737]
[1745603522976,0.063,151.04,151.02,42.98393533]
[1745603523170,0.063,151.04,151.02,42.84177376]
[1745603523389,0.063,151.04,151.02,26.0]
[1745603523885,0.063,151.04,151.02,42.84177376]
[1745603525566,0.063,151.04,151.02,61.49142262]
[1745603526301,0.063,151.04,151.03,0.14216157]
[1745603526490,0.063,151.04,151.03,99.72093533]
[1745603526666,0.063,151.04,151.03,101.04442398]
[1745603527566,0.063,151.04,151.03,118.37058419]
[1745603528388,0.063,151.04,151.03,144.22842262]
[1745603528970,0.063,151.04,151.03,118.37058419]
[1745603529169,0.063,151.04,151.03,118.22842262]
[1745603530514,0.063,151.04,151.03,82.737]
[1745603530672,0.063,151.04,151.0,99.237]
[1745603531506,0.063,151.04,151.0,99.57877376]
[1745603531922,0.063,151.04,150.98,16.48]
[1745603532285,0.063,151.04,150.93,99.217]
[1745603532286,18.85481043,151.04,150.93,99.217]
[1745603532486,0.063,151.04,150.97,16.84177376]
[1745603533514,0.063,151.04,150.95,26.0]
[1745603533692,0.063,151.04,150.98,16.84177376]
[1745603533888,0.063,151.04,150.99,16.84177376]
[1745603534188,0.063,151.04,150.98,16.84177376]
[1745603534390,0.063,151.04,150.99,16.84177376]
[1745603535113,0.063,151.04,150.98,16.84177376]
[1745603535494,0.063,151.04,150.96,26.0]
[1745603535793,0.063,151.04,150.97,16.84177376]
[1745603536013,0.063,151.04,150.93,99.217]
[1745603536014,7.7318,151.01,150.93,99.217]
[1745603536396,7.7318,151.01,150.93,116.05877376]
[1745603537007,6.62251655,151.0,150.93,116.05877376]
[1745603537599,6.62251655,151.0,150.93,99.217]
[1745603537802,6.62251655,151.0,150.93,116.05877376]
[1745603538032,14.35391259,151.01,150.94,16.84177376]
[1745603538202,7.7318,151.01,150.94,16.84177376]
[1745603538419,14.35391062,151.01,150.93,99.217]
[1745603538614,14.35391062,151.01,150.93,116.05877376]
[1745603538830,14.35391062,151.01,150.94,16.84177376]
[1745603539196,14.35391062,151.01,150.93,99.217]
[1745603539417,7.7318,151.01,150.94,16.84177376]
[1745603539629,14.35392869,151.01,150.94,16.84177376]
[1745603539806,14.35392869,151.01,150.99,0.08197012]
[1745603540405,7.7318,151.01,150.99,0.08197012]
[1745603540606,14.35398534,151.01,150.99,0.08197012]
[1745603543003,7.7318,151.01,150.99,0.08197012]
[1745603543444,14.35392482,151.01,150.99,0.08197012]
[1745603543732,26.0,151.0,150.99,0.08197012]
[1745603543897,26.0,151.0,150.9,98.657]
[1745603544097,0.14216157,150.98,150.9,98.657]
[1745603544725,0.14216157,150.98,150.9,15.92]
[1745603545121,23.18341391,150.97,150.9,15.92]
[1745603545328,49.18341391,150.97,150.9,15.92]
[1745603546446,32.62383254,150.97,150.9,15.92]
[1745603547146,16.55733055,151.0,150.91,16.84177376]
[1745603547147,32.62251655,151.0,150.91,16.84177376]
[1745603547946,6.62251655,151.0,150.94,16.84177376]
[1745603548446,7.7318,151.01,150.95,16.84177376]
[1745603548447,14.35393841,151.01,150.95,16.84177376]
[1745603549148,14.35393841,151.01,150.92,44.64964886]
[1745603549343,14.35393841,151.01,150.94,26.95536482]
[1745603549548,14.35393841,151.01,150.92,44.64964886]
[1745603549732,14.35393841,151.01,150.95,26.95536482]
[1745603549931,14.35393841,151.01,150.94,26.95536482]
[1745603551123,14.35393841,151.01,150.94,109.69236482]
[1745603552048,30.90913343,151.01,150.94,82.737]
[1745603552434,56.90913343,151.01,150.94,82.737]
[1745603552750,56.40913343,151.01,150.94,82.737]
[1745603557063,39.85393841,151.01,150.94,82.737]
[1745603557841,7.2318,151.01,150.95,26.95536482]
[1745603558060,13.85394839,151.01,150.95,26.95536482]
[1745603558354,13.85394839,151.01,150.94,82.737]
[1745603559147,30.40914341,151.01,150.94,82.737]
[1745603559559,56.40914341,151.01,150.94,82.737]
[1745603565136,56.40914341,151.01,150.91,128.34201368]
[1745603565355,26.0,150.97,150.91,82.737]
[1745603566164,26.0,150.97,150.9,15.92]
[1745603566367,26.0,150.96,150.87,18.67964886]
[1745603566743,6.62471016,150.95,150.87,0.03]
[1745603567067,8.01836157,150.94,150.87,0.03]
[1745603568552,26.0,150.91,150.87,0.03]
[1745603568759,6.62690523,150.9,150.87,0.03]
[1745603569468,23.19416831,150.9,150.87,0.03]
[1745603570475,26.0,150.88,150.87,0.03]
[1745603571574,32.62778366,150.88,150.87,0.03]
[1745603575884,26.0,150.9,150.87,0.03]
[1745603576255,0.14216157,150.92,150.87,0.03]
[1745603576256,26.0,150.92,150.87,0.03]
[1745603576880,33.8762,150.94,150.87,0.03]
[1745603577085,32.3346,150.94,150.87,16.91055972]
[1745603577651,38.96003215,150.94,150.87,0.03]
[1745603577854,12.96003215,150.94,150.87,0.03]
[1745603579796,12.96003215,150.94,150.87,16.91055972]
[1745603579993,26.0,150.96,150.88,16.88055972]
[1745603580282,32.62445163,150.96,150.88,16.88055972]
[1745603580661,32.62445163,150.96,150.87,0.03]
[1745603580662,49.18512995,150.96,150.87,0.03]
[1745603580972,0.14216157,150.89,150.87,0.03]
[1745603581573,6.5271,150.91,150.87,0.03]
[1745603581755,6.62690523,150.9,150.87,0.03]
[1745603582781,0.14216157,150.89,150.87,0.03]
[1745603583180,26.14216157,150.88,150.87,0.03]
[1745603583969,32.76994523,150.88,150.87,0.03]
[1745603587409,6.62778366,150.88,150.87,0.03]
[1745603587686,6.62753033,150.89,150.87,0.03]
[1745603591778,1.5179,150.95,150.87,16.91055972]
[1745603591980,34.14298769,150.95,150.87,82.767]
[1745603592487,0.14216157,150.94,150.87,82.767]
[1745603593201,18.79181043,150.94,150.87,82.767]
[1745603593805,0.14216157,150.92,150.87,82.767]
[1745603594370,27.5179,150.95,150.87,82.767]
[1745603595413,34.14273933,150.95,150.87,82.767]
[1745603596299,18.79181043,150.94,150.87,82.767]
[1745603596481,26.0,150.91,150.87,82.767]
[1745603597601,6.62609526,150.92,150.87,82.767]
[1745603597899,0.14216157,150.92,150.87,82.767]
[1745603599193,0.14216157,150.88,150.87,0.03]
[1745603599896,6.76994523,150.88,150.87,0.03]
[1745603600799,26.14216157,150.88,150.87,0.03]
[1745603600993,26.0,150.9,150.87,0.03]
[1745603601309,35.08964886,150.92,150.87,82.767]
[1745603601310,42.44,150.92,150.87,82.767]
[1745603601504,16.44,150.92,150.87,82.767]
[1745603601711,18.64964886,150.94,150.87,82.767]
[1745603602013,6.4171,150.96,150.87,82.767]
[1745603602183,6.4171,150.96,150.88,16.88055972]
[1745603602375,6.4171,150.96,150.89,16.88055972]
[1745603602598,42.44,150.97,150.89,16.88055972]
[1745603602784,49.06397804,150.97,150.89,82.737]
[1745603602978,23.06397804,150.97,150.89,82.737]
[1745603603280,16.44,150.97,150.9,26.97537425]
[1745603603589,16.44,150.97,150.89,82.737]
[1745603603590,17.2355443,150.99,150.91,26.97537425]
[1745603603804,17.2355443,150.99,150.91,109.71237425]
[1745603604006,10.61256946,150.99,150.91,82.737]
[1745603604194,10.61256946,150.99,150.92,26.97537425]
[1745603604503,10.61256946,150.99,150.92,82.737]
[1745603605693,10.61256946,150.99,150.92,109.71237425]
[1745603606504,10.61256946,150.99,150.92,82.737]
[1745603606801,10.61256946,150.99,150.92,109.71237425]
[1745603607793,10.61256946,150.99,150.92,82.737]
[1745603610320,10.61256946,150.99,150.92,109.71237425]
[1745603611191,10.61256946,150.99,150.92,82.737]
[1745603611721,17.23565039,150.99,150.92,82.737]
[1745603612529,18.79181043,150.98,150.92,82.737]
[1745603612823,26.0,150.93,150.9,82.737]
[1745603613034,26.0,150.93,150.87,82.767]
[1745603613239,0.14216157,150.92,150.87,82.767]
[1745603614520,26.0,150.93,150.87,82.767]
[1745603615099,6.6257159,150.93,150.87,82.767]
[1745603615316,6.76744144,150.94,150.87,82.767]
[1745603617213,6.62527987,150.94,150.87,82.767]
[1745603618729,34.27200651,150.95,150.87,82.767]
[1745603619229,34.27200651,150.95,150.87,109.74237425]
[1745603619413,23.18674989,150.96,150.87,109.74237425]
[1745603619614,15.3839803,150.96,150.89,26.97537425]
[1745603619824,32.1635,150.97,150.89,26.97537425]
[1745603620131,38.15596946,150.99,150.91,26.97537425]
[1745603620332,10.61256946,150.99,150.91,26.97537425]
[1745603620633,10.61256946,150.99,150.91,109.71237425]
[1745603620804,17.23559278,150.99,150.91,109.71237425]
[1745603622136,17.23559278,150.99,150.91,82.737]
[1745603622346,26.14216157,150.98,150.91,82.737]
[1745603622525,0.14216157,150.96,150.91,82.737]
[1745603622930,26.0,150.98,150.91,82.737]
[1745603624226,6.62383254,150.97,150.91,82.737]
[1745603624437,26.14216157,150.96,150.89,82.737]
[1745603627338,6.62471016,150.95,150.89,82.737]
[1745603627712,18.79181043,150.94,150.89,82.737]
[1745603628031,18.79181043,150.94,150.87,0.03]
[1745603629636,6.62558802,150.93,150.87,0.03]
[1745603629838,6.62558802,150.93,150.87,82.767]
[1745603631837,6.3979,150.92,150.87,82.767]
[1745603633850,13.02401346,150.92,150.87,82.767]
[1745603635349,15.82,150.95,150.87,99.62689585]
[1745603635539,22.44491183,150.95,150.88,16.85989585]
[1745603635715,22.44491183,150.95,150.87,99.62689585]
[1745603636153,15.82,150.95,150.87,99.62689585]
[1745603636316,22.4447122,150.95,150.87,99.62689585]
[1745603636627,22.4447122,150.95,150.87,82.767]
[1745603637031,22.4447122,150.95,150.87,99.62689585]
[1745603637241,15.82,150.95,150.87,99.62689585]
[1745603637540,15.82,150.95,150.88,16.85989585]
[1745603637741,22.44477289,150.95,150.87,82.767]
[1745603637925,22.44477289,150.95,150.87,99.62689585]
[1745603638251,15.82,150.95,150.88,16.85989585]
[1745603638440,15.82,150.95,150.87,99.62689585]
[1745603638940,22.44478143,150.95,150.87,99.62689585]
[1745603640652,0.14216157,150.94,150.87,82.767]
[1745603641425,6.62558802,150.93,150.87,82.767]
[1745603642260,23.18955807,150.93,150.87,82.767]
[1745603642436,0.14216157,150.92,150.87,82.767]
[1745603642942,20.39061043,150.92,150.87,0.03]
[1745603643847,26.14216157,150.9,150.87,0.03]
[1745603645055,26.0,150.9,150.87,0.03]
[1745603645832,32.62700803,150.9,150.87,0.03]
[1745603646149,32.62658652,150.91,150.87,0.03]
[1745603650348,26.0,150.91,150.87,0.03]
[1745603650656,32.62669498,150.91,150.87,0.03]
[1745603651358,31.92669498,150.91,150.87,0.03]
[1745603652626,6.62669498,150.91,150.87,0.03]
[1745603655536,32.62669498,150.91,150.87,0.03]
[1745603655752,0.14216157,150.9,150.87,0.03]
[1745603655957,18.79181043,150.9,150.87,0.03]
[1745603656335,0.14216157,150.88,150.87,0.03]
[1745603656635,6.76994523,150.88,150.87,0.03]
[1745603657483,51.41959409,150.88,150.87,0.03]
[1745603657781,44.79181043,150.87,150.86,0.03]
[1745603658774,51.4200334,150.87,150.86,0.03]
[1745603667276,0.14216157,150.86,150.82,0.03]
[1745603668385,26.14216157,150.83,150.82,0.03]
[1745603670567,32.77214234,150.83,150.82,0.03]
[1745603672456,51.4217912,150.83,150.82,0.03]
[1745603672780,66.7817912,150.83,150.82,0.03]
[1745603673087,66.7817912,150.83,150.78,0.03]
[1745603673088,44.79181043,150.79,150.78,0.03]
[1745603674801,51.42354993,150.79,150.78,0.03]
[1745603676978,32.77390107,150.79,150.78,0.03]
[1745603677170,51.42354993,150.79,150.78,0.03]
[1745603678366,32.77390107,150.79,150.78,0.03]
[1745603678577,51.42354993,150.79,150.78,0.03]
[1745603679491,32.6317395,150.79,150.78,0.03]
[1745603680783,51.42354993,150.79,150.78,0.03]
[1745603681190,32.6317395,150.79,150.78,0.03]
[1745603682790,51.42354993,150.79,150.78,0.03]
[1745603683214,18.64964886,150.78,150.74,0.03]
[1745603683491,0.14216157,150.77,150.74,0.03]
[1745603684401,6.63305916,150.76,150.74,0.03]
[1745603684573,44.79181043,150.75,150.74,0.03]
[1745603684773,59.73181043,150.75,150.74,0.03]
[1745603685597,44.64964886,150.73,150.72,1e-08]
[1745603686374,6.63481953,150.72,150.7,0.03]
[1745603689164,6.63481953,150.72,150.7,0.10908905]
[1745603689904,41.08216157,150.75,150.7,0.10908905]
[1745603690273,6.63393923,150.74,150.7,0.10908905]
[1745603690600,0.14216157,150.73,150.7,0.10908905]
[1745603690774,6.63393923,150.74,150.7,0.10908905]
[1745603691978,21.57355465,150.75,150.7,0.10908905]
[1745603692505,6.63355465,150.75,150.7,0.10908905]
[1745603692671,6.63305916,150.76,150.7,0.10908905]
[1745603692873,26.0,150.73,150.7,0.10908905]
[1745603693075,40.96,150.73,150.7,0.10908905]
[1745603694695,25.42662996,150.72,150.7,0.10908905]
[1745603697902,6.7769811,150.72,150.7,0.10908905]
[1745603698980,0.14216157,150.71,150.7,0.10908905]
[1745603699801,6.63481953,150.72,150.7,0.10908905]
[1745603701326,14.96,150.73,150.7,0.10908905]
[1745603701478,16.58219946,150.77,150.7,0.10908905]
[1745603701678,6.63305916,150.76,150.7,82.84608905]
[1745603702303,14.96,150.78,150.7,82.84608905]
[1745603703291,21.59219355,150.78,150.7,82.84608905]
[1745603703872,14.96,150.78,150.7,82.84608905]
[1745603704103,10.68818706,150.79,150.71,6.6291]
[1745603704306,17.31997485,150.79,150.71,89.3661]
[1745603705783,10.68818706,150.79,150.71,89.3661]
[1745603706087,10.68818706,150.79,150.72,1.5498]
[1745603706284,17.32017217,150.79,150.72,1.5498]
[1745603709517,17.32017217,150.79,150.7,0.10908905]
[1745603709518,26.0,150.76,150.7,0.10908905]
[1745603710099,23.21724709,150.75,150.7,0.10908905]
[1745603711508,26.0,150.72,150.7,0.10908905]
[1745603712299,6.63525977,150.71,150.7,0.10908905]
[1745603713693,21.65742134,150.71,150.7,1e-08]
[1745603714010,40.3070702,150.71,150.7,1e-08]
[1745603715125,41.8240702,150.71,150.7,1e-08]
[1745603715413,26.0,150.64,150.63,0.03]
[1745603715621,41.02216157,150.64,150.63,0.03]
[1745603716523,47.66050463,150.64,150.63,0.03]
[1745603717804,14.88,150.64,150.63,0.03]
[1745603718015,21.51834306,150.64,150.63,0.03]
[1745603718321,14.88,150.64,150.63,0.03]
[1745603718829,6.6371303,150.67,150.63,0.03]
[1745603719122,6.63672849,150.68,150.63,0.03]
[1745603721434,14.88,150.69,150.63,0.03]
[1745603721810,12.79932455,150.73,150.63,91.0333]
[1745603722013,6.63452455,150.73,150.63,91.0333]
[1745603722211,21.51321863,150.76,150.66,26.0]
[1745603723807,14.88,150.76,150.68,26.0]
[1745603724025,14.88,150.76,150.68,108.737]
[1745603724441,17.32001302,150.79,150.69,16.4296]
[1745603724608,17.32001302,150.79,150.69,99.1666]
[1745603725218,0.063,150.77,150.69,99.1666]
[1745603728220,0.063,150.77,150.7,6.2668]
[1745603728835,0.063,150.77,150.71,26.0]
[1745603729036,0.063,150.77,150.73,26.0]
[1745603730412,0.063,150.77,150.71,18.64964886]
[1745603730615,0.063,150.77,150.7,115.0038]
[1745603731417,0.063,150.77,150.73,26.0]
[1745603732131,0.063,150.77,150.76,26.0]
[1745603732345,0.063,150.77,150.76,42.4633]
[1745603732639,0.063,150.77,150.76,61.11294886]
[1745603733139,0.063,150.79,150.77,82.674]
[1745603734915,0.063,150.79,150.72,1.5722]
[1745603735110,0.063,150.79,150.72,84.2462]
[1745603738314,0.063,150.79,150.72,110.2462]
[1745603738825,0.063,150.79,150.73,18.64964886]
[1745603739014,0.063,150.79,150.76,26.0]
[1745603739212,0.063,150.79,150.76,108.674]
[1745603739639,0.063,150.79,150.76,82.674]
[1745603744122,0.063,150.79,150.73,82.674]
[1745603744356,0.20516157,150.79,150.73,82.674]
[1745603746050,6.63217933,150.78,150.73,82.674]
[1745603747630,6.63217933,150.78,150.71,97.554]
[1745603747834,0.14216157,150.77,150.69,82.674]
[1745603748139,18.79181043,150.77,150.69,82.674]
[1745603749858,6.63305916,150.76,150.69,82.674]
[1745603753343,0.14216157,150.77,150.69,82.674]
[1745603753551,32.63235032,150.78,150.69,82.674]
[1745603753951,0.14216157,150.77,150.69,82.674]
[1745603754743,18.79181043,150.77,150.69,82.674]
[1745603754940,6.63305916,150.76,150.69,82.674]
[1745603755467,0.14216157,150.75,150.69,82.674]
[1745603756060,17.31984642,150.79,150.69,108.674]
[1745603758464,17.31983713,150.79,150.7,18.64964886]
[1745603758850,10.68804082,150.79,150.7,18.64964886]
[1745603759160,10.68804082,150.79,150.71,1.5936]
[1745603759343,10.68804082,150.79,150.71,84.2676]
[1745603759548,0.063,150.79,150.74,26.0]
[1745603759866,0.063,150.79,150.75,18.64964886]
[1745603760056,0.063,150.79,150.77,26.0]
[1745603761633,0.063,150.79,150.75,101.32364886]
[1745603761850,0.063,150.79,150.76,26.0]
[1745603762058,0.063,150.79,150.78,18.64964886]
[1745603762259,0.063,150.79,150.78,59.52964886]
[1745603762455,0.063,150.79,150.78,61.02974886]
[1745603762670,0.063,150.79,150.78,61.17191043]
[1745603762957,0.063,150.83,150.82,26.0]
[1745603763137,0.063,150.83,150.82,108.611]
[1745603763631,0.063,150.83,150.82,82.611]
[1745603769044,0.063,150.83,150.82,101.26064886]
[1745603769884,0.063,150.83,150.82,127.40281043]
[1745603770586,0.063,150.83,150.82,108.611]
[1745603770757,0.063,150.83,150.82,82.611]
[1745603771485,0.063,150.83,150.79,82.611]
[1745603771861,6.69298077,150.83,150.74,82.611]
[1745603772165,26.0,150.8,150.72,14.86]
[1745603773078,18.79181043,150.82,150.72,14.86]
[1745603773256,26.14216157,150.82,150.72,14.86]
[1745603773868,6.63086002,150.81,150.72,14.86]
[1745603774253,0.14216157,150.8,150.72,14.86]
[1745603775183,0.14216157,150.8,150.71,82.641]
[1745603775184,0.14216157,150.77,150.71,0.03]
[1745603775864,6.63393923,150.74,150.71,0.03]
[1745603776366,6.77581409,150.75,150.71,0.03]
[1745603777567,12.6752018,150.76,150.71,0.03]
[1745603777766,6.042,150.76,150.71,0.03]
[1745603778585,12.67509307,150.76,150.71,0.03]
[1745603778782,6.042,150.76,150.71,0.03]
[1745603780786,6.63349917,150.75,150.71,0.03]
[1745603781559,0.14216157,150.74,150.71,0.03]
[1745603782891,6.63437935,150.73,150.71,0.03]
[1745603783889,32.63387858,150.75,150.71,0.03]
[1745603784065,6.63387858,150.75,150.71,0.03]
[1745603784869,6.18416157,150.76,150.71,0.03]
[1745603784870,12.67516758,150.76,150.71,0.03]
[1745603785689,0.14216157,150.75,150.71,0.03]
[1745603785996,18.79181043,150.75,150.71,0.03]
[1745603786354,0.14216157,150.72,150.71,0.03]
[1745603787000,6.7769811,150.72,150.71,0.03]
[1745603788461,6.63481953,150.72,150.71,0.03]
[1745603789098,26.0,150.75,150.71,0.03]
[1745603789298,6.7761008,150.74,150.71,0.03]
[1745603789478,6.63393923,150.74,150.71,0.03]
[1745603790564,6.63365661,150.75,150.71,0.03]
[1745603791281,49.30336402,150.76,150.71,0.03]
[1745603792123,10.62813599,150.76,150.71,0.03]
[1745603792304,6.63209258,150.79,150.71,82.641]
[1745603792607,13.10618187,150.8,150.71,82.641]
[1745603795943,0.14216157,150.79,150.71,82.641]
[1745603796224,0.14216157,150.75,150.71,0.03]
[1745603796407,15.02216157,150.75,150.71,0.03]
[1745603798020,0.14216157,150.73,150.71,0.03]
[1745603799947,6.63481953,150.72,150.71,0.03]
[1745603802747,14.88,150.75,150.71,0.03]
[1745603803556,6.632775,150.77,150.71,0.03]
[1745603803752,31.98049493,150.8,150.71,82.641]
[1745603803918,6.63188275,150.79,150.71,82.641]
[1745603808443,0.14216157,150.78,150.71,82.641]
[1745603809125,6.63261922,150.77,150.71,82.641]
[1745603809527,6.6317395,150.79,150.71,82.641]
[1745603812364,0.14216157,150.78,150.71,82.641]
[1745603813043,6.6317395,150.79,150.71,82.641]
[1745603816940,23.21108826,150.79,150.71,82.641]
[1745603817852,6.6317395,150.79,150.71,82.641]
[1745603819568,31.98049493,150.8,150.71,108.641]
[1745603819765,38.61185375,150.8,150.71,108.641]
[1745603819970,25.50579493,150.8,150.72,18.64964886]
[1745603820175,10.62579493,150.8,150.72,18.64964886]
[1745603820380,10.62579493,150.8,150.75,26.0]
[1745603820670,10.62579493,150.8,150.75,108.611]
[1745603822382,10.62579493,150.8,150.75,82.611]
[1745603822795,10.62579493,150.8,150.75,108.611]
[1745603826487,6.69309759,150.83,150.75,108.611]
[1745603826688,0.14216157,150.82,150.75,82.611]
[1745603827783,6.63086002,150.81,150.75,82.611]
[1745603829364,0.14216157,150.8,150.72,26.0]
[1745603829784,8.1805395,150.79,150.71,82.641]
[1745603829974,39.61988826,150.79,150.71,82.641]
[1745603830898,23.0405395,150.79,150.71,82.641]
[1745603834069,16.4088,150.79,150.71,82.641]
[1745603834266,1.6156,150.82,150.72,44.64964886]
[1745603834577,24.82210055,150.82,150.72,26.0]
[1745603834780,8.24604963,150.82,150.72,26.0]
[1745603834992,0.14216157,150.81,150.72,26.0]
[1745603835683,0.14216157,150.81,150.72,108.611]
[1745603836405,6.63129973,150.8,150.72,108.611]
[1745603837194,6.63103366,150.81,150.72,108.611]
[1745603837401,8.24621787,150.82,150.72,108.611]
[1745603838677,6.63129973,150.8,150.72,108.611]
[1745603839588,0.14216157,150.79,150.72,82.611]
[1745603839903,6.63129973,150.8,150.72,82.611]
[1745603841193,0.063,150.83,150.79,26.0]
[1745603841385,0.063,150.86,150.82,18.64964886]
[1745603841579,0.063,150.86,150.82,44.64964886]
[1745603841896,0.063,150.86,150.8,26.0]
[1745603842783,0.063,150.86,150.78,59.50964886]
[1745603845318,0.063,150.86,150.79,16.88119621]
[1745603847408,0.063,150.86,150.79,99.49219621]
[1745603847790,0.063,150.86,150.82,16.88119621]
[1745603848332,0.063,150.86,150.84,16.88119621]
[1745603848488,0.063,150.86,150.84,99.49219621]
[1745603848689,0.063,150.86,150.84,144.14184507]
[1745603850717,0.063,150.86,150.84,144.28400664]
[1745603850904,0.063,150.86,150.84,160.79920664]
[1745603851820,0.063,150.86,150.84,134.79920664]
[1745603856045,0.063,150.87,150.86,101.27681043]
[1745603856226,0.063,150.87,150.86,119.48294118]
[1745603857135,0.063,150.87,150.86,136.36413739]
[1745603857299,0.063,150.87,150.86,118.15800664]
[1745603857493,0.063,150.87,150.86,119.48286263]
[1745603858008,0.063,150.87,150.86,127.13464886]
[1745603858209,0.063,150.87,150.86,144.01584507]
[1745603861403,0.063,150.87,150.86,118.15800664]
[1745603861619,0.063,150.87,150.86,119.48284211]
[1745603861901,0.063,150.87,150.86,126.11150444]
[1745603862102,0.063,150.9,150.89,101.15081043]
[1745603862317,0.063,150.9,150.89,119.35661941]
[1745603862516,0.063,150.9,150.89,128.81707667]
[1745603862942,0.063,150.9,150.89,129.81707667]
[1745603863325,0.063,150.92,150.91,19.64964886]
[1745603863512,0.063,150.92,150.91,52.83733552]
[1745603865037,0.063,150.94,150.93,44.64964886]
[1745603865217,0.063,150.94,150.93,54.87825236]
[1745603865406,0.063,150.94,150.93,56.08978845]
[1745603865904,0.063,150.94,150.93,62.72178845]
[1745603866337,0.063,150.94,150.93,69.34737647]
[1745603866843,0.063,151.01,150.94,26.42381043]
[1745603867149,0.063,151.01,150.94,61.39765867]
[1745603867556,0.063,151.01,150.94,54.76565867]
[1745603868628,0.063,151.01,150.94,53.76565867]
[1745603869548,0.063,151.01,150.94,36.88446246]
[1745603869723,0.063,151.01,150.94,38.2086521]
[1745603870948,0.063,151.01,150.94,120.5676521]
[1745603871157,0.063,151.01,150.94,135.4076521]
[1745603871335,0.063,151.01,150.94,134.08346246]
[1745603871533,0.063,151.01,150.94,151.96465867]
[1745603873328,0.063,151.01,150.94,134.08346246]
[1745603874018,0.063,151.01,150.94,135.08346246]
[1745603874234,0.063,151.01,150.94,134.08346246]
[1745603874550,0.063,151.01,150.94,158.58980773]
[1745603874751,0.063,151.01,150.94,151.96465867]
[1745603875452,0.063,151.01,150.94,158.58980773]
[1745603876358,0.063,151.01,150.94,151.96465867]
[1745603876564,0.063,151.01,150.94,158.58980773]
[1745603876759,0.063,151.01,150.95,100.94564886]
[1745603876940,0.063,151.01,150.95,136.0321047]
[1745603877236,0.063,151.01,150.95,134.70804128]
[1745603877441,0.063,151.01,150.95,117.82684507]